fUSD/lending_fUSD_20240101
["ID","MTS","AMOUNT","RATE_DAILY","PERIOD"]
[309751888,1704075044092,-155.71,0.0003653,2]
[309751889,1704075044102,-150.0,0.00036554,2]
[309751890,1704075044111,-150.0,0.0003657,2]
[309751891,1704075044120,-666.66666,0.00036598,4]
[309751892,1704075044129,-666.66666,0.00036698,2]
[309751893,1704075044138,-152.12,0.00036726,2]
[309751894,1704075044147,-5000.0,0.00036752,2]
[309751895,1704075044156,-197.51289974,0.00036765,2]
[309751896,1704075044165,-392.0,0.00036788,5]
[309751897,1704075044174,-1566.5366,0.00036794,2]
[309751898,1704075044183,-1260.2954,0.00036794,2]
[309751899,1704075044192,-1628.0851,0.00036794,2]
[309751900,1704075044201,-666.66666,0.00036798,4]
[309751901,1704075044210,-4576.29294402,0.000368,5]
[309751902,1704075044219,-150.0,0.00036865,2]
[309751903,1704075044228,-344.01389486,0.00036892,4]
[309751904,1704075044237,-676.71214579,0.00036892,4]
[309751905,1704075044246,-1807.57802805,0.00036893,4]
[309751906,1704075044255,-5316.59431477,0.00036896,2]
[309751907,1704075044264,-1360.45785663,0.00036896,2]
[309751908,1704075044273,-2012.33771706,0.00036896,4]
[309751909,1704075044283,-206.7265905,0.00036897,2]
[309751910,1704075044292,-3897.7829354,0.00036897,2]
[309751911,1704075044302,-345.3686458,0.00036897,2]
[309751912,1704075044311,-35838.95938741,0.00036897,2]
[309751913,1704075044322,-9102.24620009,0.00036897,2]
[309751914,1704075044331,-1440.91379971,0.00036897,2]
[309751948,1704075046425,-624.56885989,0.00036897,2]
[309751949,1704075046435,-666.66666,0.00036898,2]
[309751950,1704075046444,-3297.75905011,0.00036899,2]
[309751951,1704075046456,-7595.3,0.00036899,2]
[309751952,1704075046467,-3403.18914,0.00036899,2]
[309751953,1704075046479,-3172.91960385,0.00036899,2]
[309751954,1704075046489,-298.96527469,0.00036899,2]
[309751955,1704075046498,-1330.95566396,0.000369,2]
[309751956,1704075046510,-1699.33057227,0.000369,2]
[309751957,1704075046520,-1000.0,0.000369,2]
[309751958,1704075046530,-300.0,0.000369,13]
[309751959,1704075046542,-1800.66942773,0.000369,2]
[309751960,1704075046554,-323.24916191,0.000369,2]
[309751961,1704075046564,-155.71,0.0003691,2]
[309751962,1704075046573,-151.66,0.00036922,2]
[309751963,1704075046584,-150.0,0.00036922,2]
[309751964,1704075046593,-666.240101,0.00036998,4]
[309751965,1704075046603,-308.63773214,0.00037,4]
[309751966,1704075046613,-300.6055435,0.00037,2]
[309751967,1704075046623,-351.99746145,0.00037,4]
[309751974,1704076232308,-155.0,0.00030484,4]
[309751975,1704076232318,-155.0,0.00030485,2]
[309751976,1704076232330,-792.642,0.000305,2]
[309751977,1704076232339,-222.64,0.00032445,2]
[309751978,1704076232353,-1000.0,0.000334,2]
[309751979,1704076232362,-262.68428502,0.000334,2]
[309751980,1704076232383,-1737.31571498,0.000334,2]
[309751981,1704076232393,-1548.45546935,0.000334,2]
[309751982,1704076232405,-1227.69011547,0.000334,2]
[309751983,1704076232416,-1000.0,0.00034,4]
[309751984,1704076232426,-1353.94456265,0.00034196,4]
[309751985,1704076232436,-2578.9783908,0.00034198,2]
[309751986,1704076232470,-993.79654298,0.00034198,2]
[309751987,1704076232481,-3070.23240012,0.00034198,2]
[309751988,1704076232578,-1021.90013007,0.00034198,2]
[309751989,1704076232588,-711.15455023,0.00034366,7]
[309751990,1704076232599,-1505.63740289,0.00034366,7]
[309752021,1704076238350,-283.20804688,0.00034366,7]
[309752022,1704076238362,-250.0,0.00034375,111]
[309752023,1704076238373,-499.99,0.00034375,2]
[309752024,1704076238384,-152.12,0.00034414,2]
[309752025,1704076238393,-361.32025126,0.00034416,2]
[309752039,1704076241584,-172.01974874,0.00034416,2]
[309752040,1704076241594,-4228.6,0.00034447,2]
[309752041,1704076241603,-222.64,0.00034709,2]
[309752042,1704076241613,-157.62512276,0.000349,2]
[309752043,1704076241622,-466.66,0.0003495,2]
[309752044,1704076241632,-1184.65,0.00035,4]
[309752045,1704076241642,-333.33333,0.00035098,2]
[309752046,1704076241651,-432.15346366,0.0003515,2]
[309752047,1704076241661,-1000.0,0.0003515,2]
[309752048,1704076241670,-166.19,0.00035184,2]
[309752049,1704076241680,-333.33333,0.00035198,2]
[309752050,1704076241689,-150.0,0.00035274,2]
[309752051,1704076241699,-333.33333,0.00035298,2]
[309752052,1704076241709,-244.54,0.00035302,2]
[309752053,1704076241718,-333.33333,0.00035398,2]
[309752054,1704076241727,-333.33333,0.00035498,2]
[309752055,1704076241736,-333.33333,0.00035598,2]
[309752056,1704076241745,-112.9458169,0.00035616,2]
[309752057,1704076241758,-37.0541831,0.00035616,2]
[309752058,1704076241767,-150.0,0.00035665,2]
[309752059,1704076241777,-333.33333,0.00035698,2]
[309752060,1704076241787,-333.33333,0.00035798,2]
[309752061,1704076241796,-474.2642,0.000358,2]
[309752062,1704076241806,-375.9059569,0.000358,2]
[309752063,1704076241819,-881.7444431,0.000358,2]
[309752064,1704076241829,-464.59555652,0.000358,2]
[309752066,1704076243392,-478.80484348,0.000358,2]
[309752067,1704076243403,-7358.3130466,0.000358,2]
[309752068,1704076243414,-9924.79010227,0.000358,2]
[309752069,1704076243447,-43980.93685113,0.000358,2]
[309752070,1704076243456,-153.74097124,0.000358,7]
[309752071,1704076243466,-410.24650851,0.000358,2]
[309752072,1704076243475,-793.52,0.0003589,10]
[309752073,1704076243484,-164.6444705,0.0003589,2]
[309752074,1704076243493,-661.27,0.0003589,10]
[309752075,1704076243502,-333.33333,0.00035898,2]
[309752076,1704076243511,-304391.09805788,0.000359,2]
[309752077,1704076243629,-7530.20685437,0.000359,2]
[309752078,1704076243641,-2323.92756328,0.000359,2]
[309752079,1704077272979,150.0,0.00038971,30]
[309752080,1704077381115,4135.0,0.00038972,30]
[309752087,1704077431579,-155.0,0.00026999,2]
[309752088,1704077431590,-450.0,0.00027,3]
[309752089,1704077431600,-500.0,0.00029,3]
[309752090,1704077431611,-155.0,0.00030999,2]
[309752091,1704077431622,-550.0,0.00031,3]
[309752092,1704077431634,-200.37,0.00031916,2]
[309752093,1704077431643,-600.0,0.00033,3]
[309752094,1704077431652,-152.12,0.00033662,2]
[309752095,1704077431662,-506.16,0.00033836,7]
[309752096,1704077431671,-426.68,0.00033935,2]
[309752097,1704077431680,-250.0,0.00033981,111]
[309752098,1704077431689,-1000.0,0.00034092,4]
[309752099,1704077431698,-1153.61689982,0.00034093,2]
[309752100,1704077431707,-150.0,0.00034102,3]
[309752101,1704077431717,-717.26727973,0.00034103,14]
[309752102,1704077431727,-41413.11292227,0.00034103,4]
[309752103,1704077431736,-200.37,0.0003418,2]
[309752104,1704077431746,-150.0,0.00034216,2]
[309752105,1704077431755,-3523.83,0.00034285,2]
[309752106,1704077431764,-211.42,0.00034367,2]
[309752107,1704077431773,-182.36597909,0.00034409,2]
[309752108,1704077431782,-3302.080534,0.0003452,2]
[309752109,1704077431791,-20032.596965,0.0003452,2]
[309752110,1704077431800,-1352.3,0.00034784,10]
[309752111,1704077431810,-4953.120801,0.00034794,2]
[309752112,1704077431819,-30048.895448,0.00034794,2]
[309752113,1704077431828,-333.33333,0.00034798,2]
[309752114,1704077431837,-1000.0,0.000348,2]
[309752115,1704077431846,-2958.5192,0.000348,2]
[309752116,1704077431855,-250.274,0.000348,2]
[309752117,1704077431865,-175.64,0.000348,2]
[309752118,1704077431875,-553.0,0.000348,2]
[309752119,1704077431885,-501.91,0.00034841,2]
[309752120,1704077431894,-4748.25805065,0.00034852,2]
[309752121,1704077431903,-333.33333,0.00034898,2]
[309752122,1704077431912,-626.00048187,0.00034931,14]
[309752123,1704077431923,-6604.161068,0.00034931,2]
[309752124,1704077431934,-40065.193931,0.00034931,2]
[309752125,1704077431944,-371.74121026,0.00034941,2]
[309752126,1704077431955,-333.33333,0.00034998,2]
[309752127,1704077431965,-574.2625357,0.00035,14]
[309752128,1704077431975,-650.0,0.00035,3]
[309752129,1704077431986,-1279.63,0.00035,2]
[309752130,1704077431996,-198568.42507163,0.00035,2]
[309752131,1704077432006,-684.44980213,0.00035041,14]
[309752132,1704077432016,-381.82,0.00035041,2]
[309752133,1704077432025,-8255.201335,0.00035068,2]
[309752134,1704077432035,-50081.492414,0.00035068,2]
[309752135,1704077432045,-333.33333,0.00035098,2]
[309752136,1704077432055,-573.32,0.00035131,2]
[309752137,1704077432064,-150.0,0.00035182,2]
[309752138,1704077432074,-333.33333,0.00035198,2]
[309752139,1704077432083,-333.33333,0.00035298,2]
[309752140,1704077432093,-11557.281869,0.00035342,2]
[309752141,1704077432103,-21413.37182575,0.00035342,2]
[309752142,1704077432115,-15855.22416854,0.00035342,2]
[309752143,1704077432127,-940.04070583,0.00035342,2]
[309752144,1704077432156,-5250.0,0.00035342,2]
[309752151,1704077437513,-775.09141938,0.00035342,2]
[309752152,1704077437525,-2747.53133121,0.00035342,2]
[309752153,1704077437536,-3004.38690329,0.00035342,2]
[309752154,1704077437566,-1207.61916498,0.00035342,2]
[309752155,1704077437577,-477.76498485,0.00035342,2]
[309752156,1704077437620,-358.865,0.00035342,2]
[309752157,1704077437675,-18084.19387517,0.00035342,2]
[309752158,1704077437684,-180.35962287,0.00035348,2]
[309752159,1704077437694,-333.33333,0.00035398,2]
[309752160,1704077437703,-333.33333,0.00035498,2]
[309752161,1704077437712,-212.0,0.00035586,2]
[309752162,1704077437721,-212.0,0.00035586,2]
[309752163,1704077437731,-333.33333,0.00035598,2]
[309752164,1704077437739,-150.0,0.00035616,2]
[309752165,1704077437748,-883.0,0.0003564,2]
[309752166,1704077437757,-333.33333,0.00035698,2]
[309752167,1704077437766,-280.0192,0.000357,2]
[309752168,1704077437775,-1000.0,0.000357,2]
[309752169,1704077437784,-787.3539,0.000357,2]
[309752170,1704077437794,-220.41708096,0.0003579,2]
[309752171,1704077437803,-7172.44246616,0.00035798,2]
[309752172,1704077437813,-333.33333,0.00035798,2]
[309752173,1704077437822,-750.56347104,0.00035798,2]
[309752174,1704077437831,-32102.7822693,0.00035798,2]
[309752175,1704077437840,-3895.9439,0.000358,2]
[309752176,1704077437850,-3253.1233,0.000358,2]
[309752177,1704077437858,-40291.6157,0.000358,2]
[309752178,1704077437868,-40198.46811209,0.000358,2]
[309752179,1704077437880,-101305.2048468,0.000358,2]
[309752180,1704077437891,-12508.44468645,0.000358,2]
[309752181,1704077437903,-1639.1578893,0.000358,2]
[309752182,1704077437914,-1503.88522232,0.000358,2]
[309752183,1704077437926,-4046.30973848,0.000358,2]
[309752184,1704077437949,-6306.39554297,0.000358,2]
[309752185,1704077437965,-670.626,0.000358,2]
[309752186,1704077437984,-71324.97324256,0.000358,2]
[309752187,1704077437995,-4059.63951,0.000358,2]
[309752188,1704077438006,-1436.89520903,0.000358,2]
[309752189,1704077438015,-5000.0,0.0003585,2]
[309752190,1704077438025,-323.41646571,0.00035898,4]
[309752191,1704077438034,-1037.0817784,0.00035898,4]
[309752192,1704077438043,-333.33333,0.00035898,2]
[309752193,1704077438053,-2000.0,0.000359,2]
[309752194,1704077438062,-200.0,0.000359,2]
[309752195,1704077438071,-532.02904079,0.000359,8]
[309752196,1704077438081,-156.59378203,0.000359,2]
[309752197,1704077438090,-167.16657,0.000359,2]
[309752198,1704077438099,-300.0,0.000359,13]
[309752199,1704077438109,-200.0,0.00035987,15]
[309752200,1704077438118,-333.33333,0.00035998,2]
[309752201,1704077438127,-2881.7539294,0.00035999,4]
[309752202,1704077438137,-5689.20693765,0.00035999,4]
[309752203,1704077438149,-10544.45968795,0.00036,5]
[309752204,1704077438161,-439.815,0.00036,5]
[309752205,1704077438173,-337.88816308,0.00036,5]
[309752206,1704077438184,-3790.55062379,0.00036,5]
[309752207,1704077438207,-1072.63957588,0.00036,5]
[309752208,1704077438245,-1518.88055961,0.00036,5]
[309752209,1704077438259,-416.09439969,0.00036,5]
[309752210,1704077438271,-411.01,0.00036,5]
[309752211,1704077438305,-6908.43677694,0.00036,5]
[309752212,1704077440023,-1884.55822979,0.00036,5]
[309752213,1704077440036,-612.21675028,0.00036,5]
[309752214,1704077440047,-20266.25674049,0.00036,5]
[309752215,1704077440059,-668.16681472,0.00036,5]
[309752216,1704077440082,-1173.72573698,0.00036,5]
[309752217,1704077440094,-890.89763543,0.00036,5]
[309752218,1704077440106,-20282.57030443,0.00036,5]
[309752219,1704077440778,-1705.0,0.000348,2]
[309752220,1704077440788,-2679.39180537,0.00036,5]
[309752221,1704077440801,-1842.00371638,0.00036,5]
[309752222,1704077440883,-2681.98083323,0.00036,5]
[309752223,1704077440938,-4660.78742451,0.00036,5]
[309752224,1704077440950,-451.29000509,0.00036,5]
[309752225,1704077440963,-728.18579657,0.00036,5]
[309752226,1704077440996,-6050.26297556,0.00036,5]
[309752227,1704077441007,-286.83677164,0.00036,5]
[309752228,1704077441018,-1466.08782232,0.00036,5]
[309752229,1704077441030,-320.05922027,0.00036,5]
[309752230,1704077441042,-309.04679903,0.00036,5]
[309752238,1704077442425,-1162.13187445,0.00036,5]
[309752239,1704077442439,-4347.98,0.00036,5]
[309752240,1704077442552,-765.64397858,0.00036,5]
[309752241,1704077442740,-3025.75186795,0.00036,5]
[309752242,1704077442794,-1046.64982267,0.0003599,10]
[309752243,1704077445612,-80.27017733,0.0003599,10]
[309752244,1704077445626,-1016.92112326,0.00036,5]
[309752245,1704077445665,-3466.69759647,0.00036,5]
[309752246,1704077445986,-403.74961218,0.00036,5]
[309752247,1704077445998,-11189.38539897,0.00036,5]
[309752248,1704077446009,-7113.60321755,0.00036,5]
[309752249,1704077470277,738220.78946343,0.00023,2]
[309752253,1704077513499,875.86034135,0.0002239,2]
[309752272,1704077630002,521946.61760959,0.00023,2]
[309752273,1704077707446,7752.18,0.00038972,30]
[309752276,1704078326971,1075.98,0.00038962,30]
[309752278,1704078541969,502.88,0.00038962,30]
[309752293,1704078593476,509.74,0.00038962,30]
[309752298,1704078631723,-350.0,0.000278,2]
[309752299,1704078631830,-1656.0,0.000278,2]
[309752300,1704078631840,-437.0605853,0.00029229,2]
[309752301,1704078631849,-411.18360324,0.0002996,2]
[309752302,1704078631859,-155.0,0.00031153,2]
[309752303,1704078631869,-229.09,0.00031154,2]
[309752304,1704078631880,-191.79933333,0.00032611,2]
[309752305,1704078631890,-250.0,0.00032711,2]
[309752306,1704078631900,-658.65,0.00032731,2]
[309752307,1704078631910,-190.4,0.00032762,2]
[309752308,1704078631921,-159.35,0.00032762,2]
[309752309,1704078631932,-250.0,0.00032766,2]
[309752310,1704078631941,-5765.01612922,0.00032766,2]
[309752311,1704078632061,-762.91336306,0.00032766,2]
[309752340,1704078637831,-212.0,0.00031586,2]
[309752341,1704078637843,-180.35962287,0.00032153,2]
[309752342,1704078637854,-951.16050772,0.00032766,2]
[309752343,1704078637865,-513.54,0.00032766,2]
[309752344,1704078637874,-2500.0,0.00032877,7]
[309752345,1704078637884,-203.61,0.00032877,15]
[309752346,1704078637895,-475.31,0.00033014,2]
[309752347,1704078637906,-250.0,0.00033024,2]
[309752348,1704078637916,-163.03,0.00033051,2]
[309752349,1704078637925,-186.63,0.00033075,2]
[309752350,1704078637935,-3816.25,0.00033148,2]
[309752351,1704078637944,-20704.46844493,0.00033153,4]
[309752352,1704078637954,-159.59,0.00033226,2]
[309752353,1704078637963,-341.35,0.00033226,2]
[309752354,1704078637973,-522.76,0.00033257,2]
[309752355,1704078637983,-9390.73,0.00033257,2]
[309752356,1704078637992,-186.63,0.00033266,2]
[309752357,1704078638001,-229.09,0.00033418,2]
[309752358,1704078638010,-186.63,0.00033457,2]
[309752359,1704078638019,-159.59,0.00033463,2]
[309752360,1704078638028,-161.09,0.00033479,2]
[309752361,1704078638038,-488.97191663,0.000335,4]
[309752362,1704078638047,-186.63,0.00033648,2]
[309752363,1704078638056,-159.59,0.00033701,2]
[309752364,1704078638065,-186.63,0.00033839,2]
[309752365,1704078638074,-419.9845,0.000339,2]
[309752366,1704078638083,-159.59,0.00033938,2]
[309752367,1704078638093,-1000.0,0.00034,4]
[309752368,1704078638102,-159.35,0.00034007,2]
[309752369,1704078638112,-186.63,0.0003403,2]
[309752370,1704078638122,-153.88468273,0.00034068,20]
[309752371,1704078638132,-333.33333,0.00034098,2]
[309752372,1704078638141,-159.59,0.00034175,2]
[309752373,1704078638150,-333.33333,0.00034198,2]
[309752374,1704078638159,-883.0,0.00034205,2]
[309752375,1704078638169,-186.63,0.00034221,2]
[309752376,1704078638178,-475.31,0.00034236,2]
[309752377,1704078638187,-333.33333,0.00034298,2]
[309752378,1704078638197,-333.33333,0.00034398,2]
[309752379,1704078638207,-186.63,0.00034412,2]
[309752380,1704078638217,-159.59,0.00034413,2]
[309752381,1704078638227,-707.1,0.00034488,10]
[309752382,1704078638237,-821.25,0.00034488,10]
[309752383,1704078638247,-9347.37407752,0.00034488,7]
[309752384,1704078638256,-333.33333,0.00034498,2]
[309752385,1704078638266,-276868.3429,0.00034498,2]
[309752386,1704078638275,-904.209694,0.0003452,2]
[309752387,1704078638285,-198.86,0.0003455,2]
[309752388,1704078638294,-4673.68703876,0.0003459,7]
[309752389,1704078638304,-333.33333,0.00034598,2]
[309752391,1704078638313,-3253.1233,0.000346,2]
[309752392,1704078638322,-2135.1744,0.000346,2]
[309752393,1704078638332,-280.0192,0.000346,2]
[309752394,1704078638342,-3895.9439,0.000346,2]
[309752395,1704078638352,-186.63,0.00034603,2]
[309752396,1704078638361,-159.59,0.0003465,2]
[309752397,1704078638371,-11684.2175969,0.0003469,7]
[309752398,1704078638381,-333.33333,0.00034698,2]
[309752399,1704078638390,-1000.0,0.000347,2]
[309752400,1704078638401,-775.158,0.000347,2]
[309752401,1704078638411,-21043.1709,0.000347,7]
[309752403,1704078638420,-2500.0,0.000347,2]
[309752405,1704078638430,-9347.37407752,0.0003478,7]
[309752407,1704078638439,-15279.9610345,0.0003479,7]
[309752409,1704078638453,-33793.7528725,0.0003479,7]
[309752411,1704078638463,-220.41708096,0.0003479,2]
[309752413,1704078638473,-1356.314541,0.00034794,2]
[309752415,1704078638483,-186.63,0.00034794,2]
[309752417,1704078638492,-333.33333,0.00034798,2]
[309752419,1704078638501,-40025.7882065,0.00034798,2]
[309752420,1704078638510,-375.906,0.000348,2]
[309752421,1704078638520,-187.9921,0.000348,2]
[309752422,1704078638530,-500.0,0.000348,2]
[309752423,1704078638543,-24325.07071584,0.000348,2]
[309752424,1704078638570,-3671.0237127,0.000348,2]
[309752425,1704078638584,-653.67901261,0.000348,2]
[309752426,1704078638664,-100653.52876169,0.000348,2]
[309752430,1704078640248,-23015.39673083,0.000348,2]
[309752444,1704078642766,-17778.83933295,0.000348,2]
[309752445,1704078642871,-1153.15851554,0.000348,2]
[309752446,1704078642979,-402.84579629,0.000348,2]
[309752449,1704078645665,-434.16633062,0.000348,2]
[309752450,1704078645678,-899.99920382,0.000348,2]
[309752451,1704078645689,-343.9944031,0.000348,2]
[309752452,1704078645701,-742.1,0.000348,2]
[309752453,1704078645713,-497.5,0.000348,2]
[309752454,1704078645733,-11307.38573071,0.000348,2]
[309752455,1704078645745,-59121.3117533,0.000348,2]
[309752456,1704078645754,-500.0,0.000348,2]
[309752457,1704078645764,-5060.1435,0.000348,2]
[309752458,1704078645774,-1177.50629418,0.000348,7]
[309752459,1704078645784,-4145.6152,0.00034831,2]
[309752460,1704078645793,-156.59378187,0.00034866,2]
[309752461,1704078645803,-159.59,0.00034887,2]
[309752462,1704078645813,-212.91740528,0.00034898,4]
[309752463,1704078645823,-333.33333,0.00034898,2]
[309752464,1704078645832,-863.47356487,0.00034899,2]
[309752465,1704078645843,-5792.08954313,0.000349,2]
[309752466,1704078646057,-21144.07181573,0.000349,2]
[309752467,1704078646071,-1749.08836446,0.000349,2]
[309752468,1704078646083,-1611.77944775,0.000349,2]
[309752469,1704078646095,-550.25133661,0.000349,2]
[309752470,1704078646109,-1311.80686632,0.000349,2]
[309752471,1704078646130,-339.08611687,0.000349,2]
[309752472,1704078646141,-1010.0,0.000349,2]
[309752473,1704078646154,-1574.69721288,0.000349,2]
[309752474,1704078646169,-1282.77869896,0.000349,2]
[309752475,1704078646180,-283.87148266,0.000349,2]
[309752476,1704078646191,-6733.20917696,0.000349,2]
[309752477,1704078646205,-1843.0184941,0.000349,2]
[309752478,1704078646216,-795.81129516,0.000349,2]
[309752479,1704078646230,-794.69067589,0.000349,2]
[309752480,1704078646241,-8197.31876693,0.000349,2]
[309752481,1704078646254,-1259.95708518,0.000349,2]
[309752482,1704078646266,-15679.71624674,0.000349,2]
[309752483,1704078646277,-2401.0,0.000349,2]
[309752484,1704078646289,-1065.18041574,0.000349,2]
[309752485,1704078646310,-24580.57695793,0.000349,2]
[309752486,1704078646319,-34549.75636115,0.000349,2]
[309752487,1704078646331,-1266.84474446,0.000349,2]
[309752488,1704078646343,-358.54738649,0.000349,2]
[309752489,1704078646355,-1959.89150662,0.000349,2]
[309752490,1704078646367,-97186.95253034,0.000349,2]
[309752491,1704078646378,-1912.23519756,0.000349,2]
[309752492,1704078646388,-2237.14798638,0.000349,2]
[309752493,1704078646400,-11171.77753644,0.000349,2]
[309752494,1704078646411,-2909.9450967,0.000349,2]
[309752495,1704078646423,-309.34104354,0.000349,2]
[309752496,1704079463265,433.702057,0.00038966,120]
[309752498,1704079831972,-450.0,0.00027,3]
[309752499,1704079831982,-30173.0,0.000279,2]
[309752500,1704079831991,-10000.0,0.00028,2]
[309752501,1704079832002,-182.11086944,0.000289,2]
[309752502,1704079832012,-500.0,0.00029,3]
[309752503,1704079832022,-1403.49368744,0.00029,2]
[309752504,1704079832032,-235.02,0.00029452,2]
[309752505,1704079832043,-155.0,0.0003,2]
[309752506,1704079832053,-5000.0,0.00031,2]
[309752507,1704079832062,-937.46187038,0.00031127,4]
[309752508,1704079832080,-610.13203653,0.00031127,4]
[309752509,1704079832090,-513.54,0.00031127,2]
[309752510,1704079832101,-150.99,0.00031127,2]
[309752511,1704079832111,-180.35962287,0.00031298,2]
[309752512,1704079832121,-499.99,0.00031298,2]
[309752513,1704079832130,-951.16,0.00031298,2]
[309752514,1704079832140,-17.56013264,0.00031322,2]
[309752515,1704079832165,-172.83986736,0.00031322,2]
[309752516,1704079832175,-473.08,0.00031342,2]
[309752517,1704079832184,-250.0,0.00031346,2]
[309752518,1704079832196,-475.31,0.00031354,2]
[309752519,1704079832206,-186.63,0.00031425,2]
[309752520,1704079832218,-152.89,0.00031559,2]
[309752521,1704079832227,-250.0,0.00031585,2]
[309752523,1704079832244,-186.63,0.00031607,2]
[309752525,1704079832259,-526.92,0.00031613,2]
[309752527,1704079832271,-235.02,0.00031716,2]
[309752529,1704079832281,-163.03,0.00031772,2]
[309752531,1704079832291,-174.58,0.00031783,2]
[309752533,1704079832301,-186.63,0.00031788,2]
[309752536,1704079832312,-186.63,0.0003197,2]
[309752538,1704079832322,-100.10088731,0.00032,2]
[309752548,1704079837902,-4899.89911269,0.00032,2]
[309752549,1704079837912,-5000.0,0.00032,2]
[309752550,1704079837922,-186.63,0.00032151,2]
[309752551,1704079837932,-333.33333,0.00032198,2]
[309752552,1704079837942,-333.33333,0.00032298,2]
[309752553,1704079837952,-186.63,0.00032333,2]
[309752554,1704079837962,-182.11086942,0.00032345,2]
[309752555,1704079837974,-333.33333,0.00032398,2]
[309752556,1704079837984,-333.33333,0.00032498,2]
[309752557,1704079837994,-475.31,0.00032514,2]
[309752558,1704079838003,-186.63,0.00032514,2]
[309752559,1704079838014,-333.33333,0.00032598,2]
[309752560,1704079838025,-152.89,0.00032613,2]
[309752561,1704079838035,-186.63,0.00032696,2]
[309752562,1704079838047,-333.33333,0.00032698,2]
[309752563,1704079838064,-333.33333,0.00032798,2]
[309752564,1704079838074,-159.6,0.00032799,2]
[309752565,1704079838086,-2500.0,0.00032877,7]
[309752566,1704079838096,-203.61,0.00032877,15]
[309752567,1704079838106,-186.63,0.00032877,2]
[309752568,1704079838116,-3816.25,0.00032879,2]
[309752569,1704079838126,-333.33333,0.00032898,2]
[309752570,1704079838136,-300.0,0.000329,12]
[309752571,1704079838146,-244.25262085,0.00032942,6]
[309752572,1704079838155,-414.99206463,0.00032942,2]
[309752573,1704079838166,-352.0226,0.00032942,2]
[309752574,1704079838175,-161.09,0.00032964,2]
[309752575,1704079838184,-333.33333,0.00032998,2]
[309752576,1704079838193,-25705.2787132,0.00033022,4]
[309752577,1704079838202,-292370.3887,0.00033032,2]
[309752578,1704079838212,-3895.9439,0.00033042,2]
[309752579,1704079838225,-58421.0879845,0.00033132,5]
[309752580,1704079838234,-220.41708096,0.00033132,2]
[309752581,1704079838245,-10420.05548783,0.00033142,4]
[309752582,1704079838257,-101305.2048468,0.00033142,4]
[309752583,1704079838311,-491.64613668,0.00033142,4]
[309752584,1704079838324,-702.18995477,0.00033142,4]
[309752585,1704079838336,-361.91959981,0.00033142,4]
[309752586,1704079838348,-319.21418871,0.00033142,4]
[309752587,1704079838430,-3533.93785181,0.00033142,4]
[309752588,1704079838450,-12202.78311874,0.00033142,4]
[309752589,1704079838467,-385576.35965238,0.00033142,4]
[309752590,1704079838477,-227.26741192,0.00033159,2]
[309752591,1704079838486,-198.86,0.00033339,2]
[309752592,1704079838495,-159.6,0.00033346,2]
[309752593,1704079838505,-153.88468273,0.00033398,20]
[309752594,1704079838516,-488.97191663,0.000335,4]
[309752595,1704079838526,-152.89,0.00033666,2]
[309752596,1704079838536,-475.31,0.00033674,2]
[309752597,1704079838546,-244.25262079,0.00033788,6]
[309752598,1704079838556,-159.6,0.00033892,2]
[309752599,1704079838566,-235.02,0.0003398,2]
[309752600,1704079838575,-1000.0,0.00034,4]
[309752602,1704079838585,-333.33333,0.00034098,2]
[309752604,1704079838595,-333.33333,0.00034198,2]
[309752606,1704079838605,-553.80309282,0.000342,2]
[309752607,1704079838615,-1705.64434186,0.000342,2]
[309752608,1704079838625,-682.1483917,0.000342,2]
[309752609,1704079838635,-471.14598496,0.000342,2]